bitfinex/quotes_BTCUSD_20250830
["timestamp","ask_amount","ask_price","bid_price","bid_amount"]
[1756559229613,0.06147322,108590.0,108580.0,0.19079235]
[1756559231632,0.06353322,108590.0,108580.0,0.19079235]
[1756559232033,0.06664322,108590.0,108580.0,0.19079235]
[1756559232414,0.25082224,108590.0,108580.0,0.00659637]
[1756559232615,0.59082224,108590.0,108580.0,0.00447637]
[1756559232847,0.66543363,108590.0,108580.0,0.00447637]
[1756559233051,0.6654251,108590.0,108580.0,0.00447637]
[1756559233636,0.75840511,108590.0,108580.0,0.00447637]
[1756559233916,0.79122031,108590.0,108580.0,0.00447637]
[1756559234058,0.79122074,108590.0,108580.0,0.00447637]
[1756559234259,0.87951706,108590.0,108580.0,0.00447637]
[1756559234453,0.85490566,108590.0,108580.0,0.00447637]
[1756559234664,5.74428946,108590.0,108580.0,0.00247637]
[1756559234884,5.71147426,108590.0,108580.0,0.00247637]
[1756559235091,5.71147426,108590.0,108580.0,0.00347637]
[1756559235295,5.72788186,108590.0,108580.0,0.00147637]
[1756559235693,0.57419597,108580.0,108570.0,0.0002]
[1756559235924,5.91661324,108580.0,108570.0,0.0002]
[1756559236274,0.99332592,108580.0,108570.0,0.0002]
[1756559237178,0.99328592,108580.0,108570.0,0.0002]
[1756559237422,0.83548592,108580.0,108570.0,0.0002]
[1756559237647,0.99328592,108580.0,108570.0,0.0002]
[1756559238570,0.99324592,108580.0,108570.0,0.0002]
[1756559238803,1.02605471,108580.0,108570.0,0.0002]
[1756559239034,0.83648592,108580.0,108570.0,0.0002]
[1756559239265,0.99420592,108580.0,108570.0,0.0002]
[1756559239971,0.71698993,108580.0,108570.0,0.18441295]
[1756559240205,0.93401298,108580.0,108570.0,0.00222]
[1756559240436,0.93401298,108580.0,108570.0,0.18643295]
[1756559240437,0.74350591,108580.0,108570.0,0.18643295]
[1756559240663,0.09846994,108580.0,108570.0,0.18643295]
[1756559240892,0.25093994,108580.0,108570.0,0.18643295]
[1756559241125,0.48724591,108580.0,108570.0,0.00222]
[1756559241593,0.49021591,108580.0,108570.0,0.00222]
[1756559242048,0.49021591,108580.0,108570.0,0.0002]
[1756559242602,0.44104603,108580.0,108570.0,0.0002]
[1756559242842,0.50158524,108580.0,108570.0,0.0002]
[1756559243288,0.50667643,108580.0,108570.0,0.0002]
[1756559243806,0.50682239,108580.0,108570.0,0.0002]
[1756559244029,0.4568224,108580.0,108570.0,0.18441295]
[1756559244249,0.50682239,108580.0,108570.0,0.0002]
[1756559245992,0.50682239,108580.0,108570.0,0.18441295]
[1756559246245,0.32242641,108580.0,108570.0,0.18643295]
[1756559246465,0.30626856,108580.0,108570.0,0.18643295]
[1756559246677,0.49046454,108580.0,108570.0,0.00222]
[1756559246886,0.49046454,108580.0,108570.0,0.0002]
[1756559247719,0.57876086,108580.0,108570.0,0.0002]
[1756559247939,0.49046454,108580.0,108570.0,0.0002]
[1756559248507,0.49046454,108580.0,108570.0,0.18441295]
[1756559248716,0.23257978,108580.0,108570.0,0.18643295]
[1756559248923,0.21608792,108580.0,108570.0,0.18936295]
[1756559249123,0.4023939,108580.0,108570.0,0.00515]
[1756559249372,0.4023939,108580.0,108570.0,0.00222]
[1756559249578,0.2449939,108580.0,108570.0,0.0002]
[1756559249756,0.4023139,108580.0,108570.0,0.0002]
[1756559249990,0.2449939,108580.0,108570.0,0.0002]
[1756559250202,0.4022739,108580.0,108570.0,0.0002]
[1756559250839,0.4022739,108580.0,108570.0,0.18643295]
[1756559251032,0.4022739,108580.0,108570.0,0.22644873]
[1756559252407,0.4022739,108580.0,108570.0,0.00222]
[1756559252810,0.4052439,108580.0,108570.0,0.0002]
[1756559254255,0.4022739,108580.0,108570.0,0.0002]
[1756559254575,0.4022739,108580.0,108570.0,0.00222]
[1756559256554,0.4022739,108580.0,108570.0,0.0002]
[1756559258056,0.4022739,108580.0,108570.0,0.00222]
[1756559258472,0.4022739,108580.0,108570.0,0.00515]
[1756559258684,0.4022739,108580.0,108570.0,0.00222]
[1756559258898,0.36929321,108580.0,108570.0,0.00222]
[1756559259090,0.23247761,108580.0,108570.0,0.18936295]
[1756559259322,0.41667359,108580.0,108570.0,0.04252878]
[1756559259528,0.36925321,108580.0,108570.0,0.03959878]
[1756559259736,0.36925321,108580.0,108570.0,0.00222]
[1756559259943,0.41879531,108580.0,108570.0,0.18643295]
[1756559260161,0.41668531,108580.0,108570.0,0.18936295]
[1756559260380,0.41879531,108580.0,108570.0,0.00515]
[1756559260789,0.44245567,108580.0,108570.0,0.00515]
[1756559260959,0.4622786,108580.0,108570.0,0.00515]
[1756559261165,0.4622786,108580.0,108570.0,0.0002]
[1756559261475,0.4652486,108580.0,108570.0,0.0002]
[1756559261677,0.494792,108580.0,108570.0,0.0002]
[1756559261881,0.20993714,108560.0,108550.0,1.51660723]
[1756559262085,0.62031638,108560.0,108550.0,1.51660723]
[1756559262296,0.62031638,108560.0,108550.0,1.52155723]
[1756559262501,0.4691344,108560.0,108550.0,1.70580412]
[1756559262715,0.43397647,108560.0,108550.0,1.70580412]
[1756559262922,0.43397647,108560.0,108550.0,1.79410044]
[1756559263124,0.43608647,108560.0,108550.0,1.79710044]
[1756559263327,0.43397647,108560.0,108550.0,1.70880412]
[1756559263768,0.40826924,108560.0,108550.0,1.71080412]
[1756559263960,0.40919052,108560.0,108550.0,1.71080412]
[1756559264380,0.59553043,108560.0,108550.0,1.52160723]
[1756559264592,0.59665602,108560.0,108550.0,1.52160723]
[1756559264815,0.43399964,108560.0,108550.0,1.71080412]
[1756559265291,0.40921369,108560.0,108550.0,1.82472295]
[1756559265504,0.5985236,108560.0,108550.0,1.52160723]
[1756559265712,0.59651964,108560.0,108550.0,1.52655723]
[1756559265914,0.59651964,108560.0,108550.0,1.71080412]
[1756559266355,0.84242166,108560.0,108550.0,1.52160723]
[1756559266591,0.78285955,108560.0,108550.0,1.52160723]
[1756559266794,0.59862964,108560.0,108550.0,1.70787412]
[1756559267006,0.59862964,108560.0,108550.0,1.71080412]
[1756559267224,0.78582955,108560.0,108550.0,1.52160723]
[1756559267434,0.78285955,108560.0,108550.0,1.51860723]
[1756559267673,0.78285955,108560.0,108550.0,1.51660723]
[1756559267886,0.78285955,108560.0,108550.0,1.51962723]
[1756559268091,0.78582955,108560.0,108550.0,1.51860723]
[1756559268520,0.88707154,108560.0,108550.0,1.51860723]
[1756559268744,5.77677464,108560.0,108550.0,1.51860723]
[1756559268964,5.74372671,108560.0,108550.0,1.51860723]
[1756559269404,5.74372671,108560.0,108550.0,1.07055934]
[1756559269612,5.80627321,108560.0,108550.0,0.92225635]
[1756559269812,5.84502743,108560.0,108550.0,0.91976552]
[1756559270039,5.89455218,108560.0,108550.0,0.55482516]
[1756559270168,5.89455218,108560.0,108550.0,0.29530479]
[1756559270365,5.65532143,108560.0,108550.0,0.27414234]
[1756559270573,5.72135384,108560.0,108550.0,0.27414234]
[1756559270768,5.71408629,108560.0,108550.0,0.27414234]
[1756559271111,5.68837906,108560.0,108550.0,0.27414234]
[1756559271311,5.73581898,108560.0,108550.0,0.27314234]
[1756559271551,5.8241153,108560.0,108550.0,0.27314234]
[1756559271685,5.86595155,108560.0,108550.0,0.27314234]
[1756559271890,5.92611233,108560.0,108550.0,1e-08]
[1756559272094,5.89492633,108560.0,108550.0,1e-08]
[1756559272505,5.81383001,108560.0,108550.0,1e-08]
[1756559272786,5.62669119,108560.0,108550.0,1e-08]
[1756559272980,5.59270894,108560.0,108550.0,1e-08]
[1756559273317,5.77019449,108560.0,108550.0,1e-08]
[1756559273702,6.21969449,108560.0,108550.0,1e-08]
[1756559273922,6.19698726,108560.0,108550.0,1e-08]
[1756559274104,6.22269449,108560.0,108550.0,1e-08]
[1756559274344,6.19698726,108560.0,108550.0,1e-08]
[1756559274553,6.22269449,108560.0,108550.0,1e-08]
[1756559274967,6.22257408,108560.0,108550.0,1e-08]
[1756559275170,6.3108704,108560.0,108550.0,1e-08]
[1756559275593,5.8885564,108560.0,108550.0,1e-08]
[1756559275800,5.86284083,108560.0,108550.0,1e-08]
[1756559276013,5.88854806,108560.0,108550.0,1e-08]
[1756559276445,5.9029706,108560.0,108550.0,1e-08]
[1756559276858,5.92390942,108560.0,108550.0,1e-08]
[1756559277068,5.97390942,108560.0,108550.0,1e-08]
[1756559277702,5.97871875,108560.0,108550.0,1e-08]
[1756559277929,5.74157993,108560.0,108550.0,1e-08]
[1756559278143,5.74229062,108560.0,108550.0,1e-08]
[1756559278358,5.79269761,108560.0,108550.0,1e-08]
[1756559278773,5.81988361,108560.0,108550.0,1e-08]
[1756559279607,5.65328361,108560.0,108550.0,1e-08]
[1756559280022,5.81996361,108560.0,108550.0,1e-08]
[1756559280230,5.90825993,108560.0,108550.0,1e-08]
[1756559280443,5.90829993,108560.0,108550.0,1e-08]
[1756559280877,5.92923875,108560.0,108550.0,1e-08]
[1756559281087,5.98751377,108560.0,108550.0,1e-08]
[1756559281943,6.00406374,108560.0,108550.0,1e-08]
[1756559282373,6.00406374,108560.0,108530.0,1e-08]
[1756559282374,0.57090991,108540.0,108530.0,1e-08]
[1756559282596,5.95641078,108540.0,108530.0,1e-08]
[1756559282828,6.02968277,108540.0,108530.0,1e-08]
[1756559283288,6.02967223,108540.0,108530.0,1e-08]
[1756559283721,0.52428084,108530.0,108520.0,1e-08]
[1756559283935,5.99196447,108530.0,108520.0,1e-08]
[1756559284161,5.69130416,108530.0,108520.0,1e-08]
[1756559284382,5.94433436,108530.0,108520.0,1e-08]
[1756559284600,0.55002203,108510.0,108500.0,0.00439793]
[1756559284812,0.06903138,108510.0,108500.0,0.00439793]
[1756559285021,0.72711326,108510.0,108500.0,0.00644793]
[1756559285247,5.05379946,108510.0,108500.0,0.19308386]
[1756559285464,0.01709123,108510.0,108500.0,0.19077972]
[1756559285679,0.01709123,108510.0,108500.0,0.22831247]
[1756559285680,0.04279846,108510.0,108500.0,0.22831247]
[1756559285888,0.22711326,108510.0,108500.0,0.00644793]
[1756559286309,0.66009327,108510.0,108500.0,0.01144793]
[1756559286520,5.5992283,108510.0,108500.0,0.00618793]
[1756559286735,5.5972383,108510.0,108500.0,0.00644793]
[1756559286950,5.85653462,108510.0,108500.0,0.00644793]
[1756559287164,5.85753462,108510.0,108500.0,0.01544793]
[1756559287373,5.88690937,108510.0,108500.0,0.01218793]
[1756559287585,5.90428607,108510.0,108500.0,0.01218793]
[1756559287798,5.90428607,108510.0,108500.0,0.01018793]
[1756559288081,5.89856564,108510.0,108500.0,0.01223793]
[1756559288287,5.89856564,108510.0,108500.0,0.01418793]
[1756559288504,5.89856564,108510.0,108500.0,0.01623793]
[1756559288717,5.80743932,108510.0,108500.0,0.00644793]
[1756559289156,5.782745,108510.0,108500.0,0.00644793]
[1756559289388,0.9283573,108510.0,108500.0,0.01144793]
[1756559289609,0.5018825,108510.0,108500.0,0.01144793]
[1756559289824,0.5018825,108510.0,108500.0,0.19577972]
[1756559289825,0.36350195,108510.0,108500.0,0.19577972]
[1756559290041,0.74500398,108510.0,108500.0,0.01144793]
[1756559290493,0.8333003,108510.0,108500.0,0.01144793]
[1756559290549,0.92628031,108510.0,108500.0,0.01344793]
[1756559290764,0.94598089,108510.0,108500.0,0.01344793]
[1756559291220,0.85768457,108510.0,108500.0,0.01144793]
[1756559291451,0.50188977,108510.0,108500.0,0.01144793]
[1756559291700,0.38920918,108510.0,108500.0,0.19877972]
[1756559291896,0.21439846,108510.0,108500.0,0.19877972]
[1756559292145,0.01709123,108510.0,108500.0,0.19877972]
[1756559292379,0.01709123,108510.0,108500.0,0.25805115]
[1756559292644,0.01709123,108510.0,108500.0,0.7125316]
[1756559292876,0.02618469,108540.0,108520.0,0.18429782]
[1756559293125,0.62405352,108560.0,108540.0,0.18426386]
[1756559293352,0.25025611,108560.0,108550.0,0.18950689]
[1756559293564,0.07853611,108560.0,108550.0,0.18950689]
[1756559293784,0.41853611,108560.0,108550.0,0.18950689]
[1756559293997,0.34642181,108560.0,108550.0,0.18950689]
[1756559294456,0.34,108560.0,108550.0,0.00526]
[1756559294670,0.34642411,108560.0,108550.0,0.18950689]
[1756559294886,0.53065402,108560.0,108550.0,0.00205]
[1756559295103,0.70225402,108560.0,108550.0,0.00505]
[1756559295349,0.79722506,108560.0,108550.0,0.003]
[1756559295569,5.66007561,108560.0,108550.0,0.003]
[1756559296037,5.71207468,108560.0,108550.0,0.003]
[1756559296476,5.71207468,108560.0,108550.0,0.005]
[1756559296897,5.73671168,108560.0,108550.0,0.002]
[1756559297148,5.825008,108560.0,108550.0,0.002]
[1756559297364,5.84247839,108560.0,108550.0,1e-08]
[1756559297585,0.52428084,108530.0,108520.0,0.00047746]
[1756559297800,0.81502554,108530.0,108520.0,0.00047746]
[1756559298020,0.81701554,108530.0,108520.0,0.00047746]
[1756559298487,0.64342554,108530.0,108520.0,0.00252746]
[1756559298711,0.4591447,108530.0,108520.0,0.19003528]
[1756559298919,0.1191447,108530.0,108520.0,0.22747016]
[1756559299134,0.09940515,108530.0,108520.0,0.04317234]
[1756559299346,0.28368599,108530.0,108520.0,0.00573746]
[1756559299619,0.64344515,108530.0,108520.0,0.00252746]
[1756559299842,0.64551515,108530.0,108520.0,0.00047746]
[1756559300052,0.64551515,108530.0,108520.0,0.00256746]
[1756559300257,0.64344515,108530.0,108520.0,0.00256746]
[1756559300682,0.64344515,108530.0,108520.0,0.00556746]
[1756559301096,0.64551515,108530.0,108520.0,0.00347746]
[1756559301310,0.64551515,108530.0,108520.0,0.00756746]
[1756559301518,0.64551515,108530.0,108520.0,0.00547746]
[1756559301926,0.73695147,108530.0,108520.0,0.00547746]
[1756559302184,0.73695147,108530.0,108520.0,0.00756746]
[1756559302185,0.64344515,108530.0,108520.0,0.00756746]
[1756559302394,0.81520515,108530.0,108520.0,0.01049746]
[1756559302605,0.81520515,108530.0,108520.0,0.00556746]
[1756559302811,0.81520515,108530.0,108520.0,0.00856746]
[1756559303025,0.83989062,108530.0,108520.0,0.00556746]
[1756559303699,0.83989062,108530.0,108520.0,0.00656746]
[1756559304118,0.83989062,108530.0,108520.0,0.00949746]
[1756559304340,0.83989062,108530.0,108520.0,0.00356746]
[1756559304752,0.85061637,108530.0,108520.0,0.00556746]
[1756559305033,0.85704795,108530.0,108520.0,0.00849746]
[1756559305429,0.68528795,108530.0,108520.0,0.00849746]
[1756559305908,0.85680795,108530.0,108520.0,0.00849746]
[1756559306419,4.43212248,108530.0,108520.0,0.00849746]
[1756559307799,4.43212248,108530.0,108520.0,0.00649746]
[1756559308011,4.43180248,108530.0,108520.0,0.00549746]
[1756559308212,4.43180248,108530.0,108520.0,0.00556746]
[1756559308423,4.43387248,108530.0,108520.0,0.00856746]
[1756559308803,4.43180248,108530.0,108520.0,0.00556746]
[1756559309036,4.43180248,108530.0,108520.0,0.00849746]
[1756559309223,4.43180248,108530.0,108520.0,0.01249746]
[1756559309637,4.43180248,108530.0,108520.0,0.02940902]
[1756559309845,4.16762247,108530.0,108520.0,0.02940902]
[1756559310066,3.63691005,108530.0,108520.0,0.22001056]
[1756559310266,3.61715089,108530.0,108520.0,0.21770684]
[1756559311519,3.61715089,108530.0,108520.0,0.38854684]
[1756559312155,3.61715089,108530.0,108520.0,0.50246567]
[1756559313198,3.6,108530.0,108520.0,0.86396611]
[1756559313407,3.6,108530.0,108520.0,0.85996611]
[1756559313829,3.6,108530.0,108520.0,0.50534567]
[1756559314042,3.6,108530.0,108520.0,0.86284611]
[1756559314256,3.6,108530.0,108520.0,0.85584611]
[1756559314463,3.6,108530.0,108520.0,0.85884611]
[1756559314677,3.6,108530.0,108520.0,0.86684611]
[1756559314886,3.6,108530.0,108520.0,0.85884611]
[1756559315088,3.6,108530.0,108520.0,0.85584611]
[1756559315293,3.6,108530.0,108520.0,0.88354611]
[1756559315512,3.6,108530.0,108520.0,0.88954611]
[1756559316054,3.6,108530.0,108520.0,0.88922611]
[1756559316315,3.6,108530.0,108520.0,0.89522611]
[1756559316737,3.6,108530.0,108520.0,0.36332567]
[1756559316961,3.6,108530.0,108520.0,0.53372567]
[1756559317384,3.6,108530.0,108520.0,0.88922611]
[1756559317599,3.6,108530.0,108520.0,0.89422611]
[1756559317825,3.6,108530.0,108520.0,0.88822611]
[1756559318022,3.6,108530.0,108520.0,0.89222611]
[1756559318250,3.6,108530.0,108520.0,0.88746611]
[1756559318668,3.6,108530.0,108520.0,0.89246611]
[1756559319733,3.6,108530.0,108520.0,0.72182611]
[1756559319937,3.6,108530.0,108520.0,0.89242611]
[1756559321567,3.6,108530.0,108520.0,0.89214611]
[1756559321769,3.6,108530.0,108520.0,0.53064567]
[1756559321974,3.6,108530.0,108520.0,0.48283411]
[1756559322224,3.60521,108530.0,108520.0,0.28675529]
[1756559322421,3.60521,108530.0,108520.0,0.45683529]
[1756559322843,3.60521,108530.0,108520.0,0.47777411]
[1756559323042,3.60207,108530.0,108520.0,0.47986411]
[1756559323238,3.60207,108530.0,108520.0,0.54228194]
[1756559323239,3.6,108530.0,108520.0,0.54228194]
[1756559323650,3.6,108530.0,108520.0,0.54728194]
[1756559324411,3.6,108530.0,108520.0,0.55021194]
[1756559324625,3.6,108530.0,108520.0,0.54712194]
[1756559324823,3.60207,108530.0,108520.0,0.54212194]
[1756559325091,3.60207,108530.0,108520.0,0.47570411]
[1756559325271,3.60207,108530.0,108520.0,0.47970411]
[1756559325971,3.60207,108530.0,108520.0,0.47753411]
[1756559326179,3.60521,108530.0,108520.0,0.47962411]
[1756559326397,3.60207,108530.0,108520.0,0.54631094]
[1756559327788,3.6,108530.0,108520.0,0.54924094]
[1756559329472,3.6,108530.0,108520.0,0.54631094]
[1756559329934,3.6,108530.0,108520.0,0.47962411]
[1756559330383,3.6,108530.0,108520.0,0.48285411]
[1756559330923,3.6,108530.0,108520.0,0.84435455]
[1756559331548,3.6,108530.0,108520.0,0.48285411]
[1756559331921,3.6,108530.0,108520.0,0.84435455]
[1756559332135,3.6,108530.0,108520.0,0.57115043]
[1756559332361,3.6,108530.0,108520.0,1.27265087]
[1756559332577,3.6,108530.0,108520.0,0.91115043]
[1756559332790,3.6,108530.0,108520.0,1.27265087]
[1756559332995,3.6,108530.0,108520.0,0.91115043]
[1756559333198,3.6,108530.0,108520.0,1.27265087]
[1756559333403,3.6,108530.0,108520.0,1.30035087]
[1756559333976,3.6,108530.0,108520.0,1.35035087]
[1756559334191,3.17818257,108530.0,108520.0,1.98337131]
[1756559334413,2.69900083,108530.0,108520.0,1.99215499]
[1756559334627,2.65646475,108530.0,108520.0,1.09931411]
[1756559334833,2.41333536,108530.0,108520.0,2.01098499]
[1756559335041,2.20763158,108530.0,108520.0,2.01098499]
[1756559335257,2.20763158,108530.0,108520.0,2.00698499]
[1756559335258,2.02677461,108530.0,108520.0,2.00698499]
[1756559335463,1.92375681,108530.0,108520.0,2.01098499]
[1756559335981,1.44401145,108530.0,108520.0,2.00698499]
[1756559336260,1.22254178,108530.0,108520.0,2.00698499]
[1756559336523,1.14130181,108530.0,108520.0,2.00698499]
[1756559336707,1.14130181,108530.0,108520.0,2.23678499]
[1756559336866,1.1320746,108530.0,108520.0,2.24078499]
[1756559337064,1.1320746,108530.0,108520.0,2.41098499]
[1756559337243,1.12284739,108530.0,108520.0,2.24078499]
[1756559337444,1.12284739,108530.0,108520.0,2.41098499]
[1756559337646,1.11362018,108530.0,108520.0,2.41098499]
[1756559337863,1.11362018,108530.0,108520.0,2.40698499]
[1756559338084,1.10439297,108530.0,108520.0,2.41298499]
[1756559338486,1.09516576,108530.0,108520.0,2.41298499]
[1756559338881,1.08593855,108530.0,108520.0,2.41298499]
[1756559339292,1.07671134,108530.0,108520.0,2.41298499]
[1756559339705,0.64778474,108530.0,108520.0,2.41298499]
[1756559339906,0.64778474,108530.0,108520.0,2.24278499]
[1756559340140,0.63855753,108530.0,108520.0,1.68994411]
[1756559340370,0.62933032,108530.0,108520.0,2.41294499]
[1756559340578,0.1661325,108530.0,108520.0,2.41294499]
[1756559340782,0.06002225,108530.0,108520.0,2.41294499]
[1756559341160,0.00316,108570.0,108560.0,0.18422991]
[1756559341363,0.00316,108570.0,108560.0,0.51876992]
[1756559341569,0.00521,108570.0,108560.0,0.88027036]
[1756559342274,0.00521,108570.0,108560.0,0.88041385]
[1756559342458,0.00205,108570.0,108560.0,0.88540385]
[1756559342650,0.00205,108570.0,108560.0,0.90634267]
[1756559342855,0.00521,108570.0,108560.0,0.90435267]
[1756559343054,0.00521,108570.0,108560.0,0.94662198]
[1756559343627,0.00521,108570.0,108560.0,0.94861198]
[1756559344376,0.00521,108570.0,108560.0,0.58712154]
[1756559344514,0.00521,108570.0,108560.0,0.23217163]
[1756559344720,0.00521,108570.0,108560.0,0.41640154]
[1756559344943,0.00521,108570.0,108560.0,0.40253163]
[1756559345142,0.00521,108570.0,108560.0,0.58676154]
[1756559345474,0.00521,108570.0,108560.0,0.40253163]
[1756559345614,0.00521,108570.0,108560.0,0.58676154]
[1756559346056,0.16016266,108590.0,108570.0,0.02093882]
[1756559346267,0.18419638,108580.0,108570.0,0.02093882]
[1756559346456,0.20340482,108580.0,108570.0,0.19117882]
[1756559346915,0.18421295,108570.0,108560.0,0.21123281]
[1756559347122,0.2034194,108570.0,108560.0,0.22917163]
[1756559347330,0.00205,108570.0,108560.0,0.58152154]
[1756559347531,0.00205,108570.0,108560.0,0.58674154]
[1756559347735,0.00205,108570.0,108560.0,0.94824198]
[1756559347976,0.18417961,108590.0,108570.0,0.20515039]
[1756559348198,0.20404702,108590.0,108580.0,0.17242244]
[1756559348404,0.20602702,108590.0,108580.0,0.17242244]
[1756559348835,0.01913613,108590.0,108580.0,0.37954724]
[1756559349047,0.01913613,108590.0,108580.0,0.83172525]
[1756559349294,0.00198,108590.0,108580.0,0.46823481]
[1756559350125,0.19617204,108610.0,108590.0,0.20511308]
[1756559350332,0.21332069,108610.0,108600.0,0.17410202]
[1756559350567,0.21332069,108610.0,108600.0,0.1718]
[1756559350568,0.02183865,108610.0,108600.0,0.1718]
[1756559350764,0.02183865,108610.0,108600.0,0.17410202]
[1756559350978,0.20598375,108610.0,108600.0,0.17410202]
[1756559351369,0.20598375,108610.0,108600.0,0.17210202]
[1756559351576,0.20598375,108610.0,108600.0,0.17224551]
[1756559351792,0.20598375,108610.0,108600.0,0.00014349]
[1756559352124,0.20598375,108610.0,108600.0,0.17174349]
[1756559352581,0.20698375,108610.0,108600.0,0.00014349]
[1756559352805,0.54698375,108610.0,108600.0,0.17162349]
[1756559353021,0.5534106,108610.0,108600.0,0.17162349]
[1756559353242,0.5534106,108610.0,108600.0,0.17262349]
[1756559353665,0.64639061,108610.0,108600.0,0.00014349]
[1756559353921,0.67377536,108610.0,108600.0,0.00014349]
[1756559354142,0.67277536,108610.0,108600.0,0.00014349]
[1756559355212,0.69252694,108610.0,108600.0,0.00014349]
[1756559355689,0.69453112,108610.0,108600.0,0.00014349]
[1756559357760,0.71071199,108610.0,108600.0,0.00014349]
[1756559358050,0.69453112,108610.0,108600.0,0.00014349]
[1756559359238,0.69453735,108610.0,108600.0,0.00014349]
[1756559359670,0.71922794,108610.0,108600.0,0.00014349]
[1756559359926,5.55938894,108610.0,108600.0,0.00014349]
[1756559360122,0.18419598,108580.0,108570.0,0.24148]
[1756559360349,0.20342484,108580.0,108570.0,0.24152764]
[1756559360748,0.20602484,108580.0,108570.0,0.24212764]
[1756559361164,0.20342484,108580.0,108570.0,0.24212764]
[1756559361609,0.20602484,108580.0,108570.0,0.24400764]
[1756559362308,0.21247258,108580.0,108570.0,0.24300764]
[1756559362534,0.20987258,108580.0,108570.0,0.24300764]
[1756559362753,0.20987258,108580.0,108570.0,0.24400764]
[1756559362962,0.21247258,108580.0,108570.0,0.24400764]
[1756559363950,0.20987258,108580.0,108570.0,0.24400764]
[1756559365492,0.20342484,108580.0,108570.0,0.24400764]
[1756559365902,0.20987447,108580.0,108570.0,0.24400764]
[1756559366095,0.20347499,108580.0,108570.0,0.24400764]
[1756559366441,0.20347499,108580.0,108570.0,0.24606764]
[1756559366870,0.20347499,108580.0,108570.0,0.24904764]
[1756559367323,0.20347499,108580.0,108570.0,0.24606764]
[1756559367523,0.20347499,108580.0,108570.0,0.24904764]
[1756559367716,0.20347499,108580.0,108570.0,0.24606764]
[1756559368528,0.20347499,108580.0,108570.0,0.24904764]
[1756559368926,0.20139499,108580.0,108570.0,0.24904764]
[1756559369348,0.20337499,108580.0,108570.0,0.24904764]
[1756559369547,0.20139499,108580.0,108570.0,0.24904764]
[1756559371647,0.20337499,108580.0,108570.0,0.24904764]
[1756559372676,0.20337499,108580.0,108570.0,0.07288764]
[1756559372880,0.20337499,108580.0,108570.0,0.17200764]
[1756559373848,0.20337499,108580.0,108570.0,0.00204764]
[1756559374131,0.20337499,108580.0,108570.0,0.17200764]
[1756559376356,0.18617598,108580.0,108570.0,0.17156764]
[1756559376565,0.20336632,108580.0,108570.0,0.17156764]
[1756559376906,0.20336605,108580.0,108570.0,0.17156764]
[1756559377102,0.18887598,108580.0,108570.0,0.17156764]
[1756559377334,0.20606605,108580.0,108570.0,0.17156764]
[1756559379066,0.20606605,108580.0,108570.0,0.00204764]
[1756559379376,0.48514467,108580.0,108570.0,0.00204764]
[1756559379594,0.46816606,108580.0,108570.0,0.00204764]
[1756559379978,0.48796979,108580.0,108570.0,0.00204764]
[1756559380591,0.82796979,108580.0,108570.0,0.00204764]
[1756559380792,5.67457797,108580.0,108570.0,0.00204764]
[1756559381155,5.72665331,108580.0,108570.0,0.00104764]
[1756559381963,5.72665331,108580.0,108570.0,4.764e-05]
[1756559382467,5.72765331,108580.0,108570.0,0.00104764]
[1756559382670,5.72765331,108580.0,108570.0,4.764e-05]
[1756559382851,5.72665331,108580.0,108570.0,4.764e-05]
[1756559383046,5.75635531,108580.0,108570.0,4.764e-05]
[1756559383287,5.84465163,108580.0,108570.0,4.764e-05]
[1756559383499,5.85906971,108580.0,108570.0,4.764e-05]
[1756559385560,5.86006971,108580.0,108570.0,4.764e-05]
[1756559385992,5.87856559,108580.0,108570.0,4.764e-05]
[1756559386897,5.87211657,108580.0,108570.0,4.764e-05]
[1756559387102,0.18424689,108550.0,108540.0,0.1243]
[1756559387339,0.20143367,108550.0,108540.0,0.12650317]
[1756559387554,0.20143367,108550.0,108540.0,0.00518317]
[1756559387766,0.54341312,108550.0,108540.0,0.00014317]
[1756559388286,0.56320957,108550.0,108540.0,0.00518317]
[1756559388848,0.54341312,108550.0,108540.0,0.00518317]
[1756559389060,0.54341312,108550.0,108540.0,0.00718317]
[1756559390016,0.56168773,108550.0,108540.0,0.00918317]
[1756559390440,0.56167557,108550.0,108540.0,0.00918317]
[1756559390653,0.72979557,108550.0,108540.0,0.00918317]
[1756559391332,0.72979557,108550.0,108540.0,0.00718317]
[1756559391539,0.81809189,108550.0,108540.0,0.00214317]
[1756559391743,0.84255395,108550.0,108540.0,0.00214317]
[1756559392150,0.67443395,108550.0,108540.0,0.00214317]
[1756559392563,0.84239395,108550.0,108540.0,0.00014317]
[1756559392768,0.84239395,108550.0,108540.0,0.00114317]
[1756559392943,0.84045395,108550.0,108540.0,0.00632317]
[1756559393155,0.57947394,108550.0,108540.0,0.00732317]
[1756559393403,0.21969557,108550.0,108540.0,0.00732317]
[1756559394820,0.2025215,108550.0,108540.0,0.00732317]
[1756559397362,0.2025215,108550.0,108540.0,0.00962646]
[1756559397822,0.2025215,108550.0,108540.0,0.00214317]
[1756559397823,0.22165017,108550.0,108540.0,0.00214317]
[1756559398263,0.22164943,108550.0,108540.0,0.00732317]
[1756559398758,0.37199484,108550.0,108540.0,0.00214317]
[1756559399007,0.70449987,108550.0,108540.0,0.00214317]
[1756559399260,0.68472419,108550.0,108540.0,0.00214317]
[1756559399475,0.701791,108550.0,108540.0,0.00214317]
[1756559399699,0.869711,108550.0,108540.0,0.00214317]
[1756559401107,0.84232625,108550.0,108540.0,0.00214317]
[1756559401948,0.67440625,108550.0,108540.0,0.00732317]
[1756559402150,0.84208625,108550.0,108540.0,0.00732317]
[1756559402787,0.84208625,108550.0,108540.0,0.00214317]
[1756559403398,0.74910624,108550.0,108540.0,0.00732317]
[1756559403594,0.74911298,108550.0,108540.0,0.00732317]
[1756559404120,0.74703298,108550.0,108540.0,0.00732317]
[1756559404414,0.57947298,108550.0,108540.0,0.00732317]
[1756559404652,0.58143298,108550.0,108540.0,0.00214317]
[1756559404909,0.57947298,108550.0,108540.0,0.00732317]
[1756559406786,0.57948433,108550.0,108540.0,0.00732317]
[1756559407602,0.58144433,108550.0,108540.0,0.00732317]
[1756559407836,0.57948433,108550.0,108540.0,0.00732317]
[1756559408031,0.58144433,108550.0,108540.0,0.00732317]
[1756559408429,0.58789467,108550.0,108540.0,0.00732317]
[1756559409891,0.58593467,108550.0,108540.0,0.00732317]
[1756559411482,0.58789467,108550.0,108540.0,0.00732317]
[1756559412870,0.58789467,108550.0,108540.0,0.00214317]
[1756559413088,0.58593467,108550.0,108540.0,0.00732317]
[1756559414432,0.61363867,108550.0,108540.0,0.00732317]
[1756559415684,0.58593467,108550.0,108540.0,0.00732317]
[1756559416695,0.58789467,108550.0,108540.0,0.00732317]
[1756559417280,0.58795339,108550.0,108540.0,0.00732317]
[1756559417480,0.58795339,108550.0,108540.0,0.00214317]
[1756559417685,0.58795339,108550.0,108540.0,0.00732317]
[1756559418262,0.58795359,108550.0,108540.0,0.00732317]